[Event "53rd Mar Del Plata Open 2024"]
[Site "Mar Del Plata"]
[Date "2024.03.23"]
[Round "1.8"]
[White "Miranda Romo, Daniel"]
[Black "Valerga, Diego"]
[Result "0-1"]
[ECO "D02"]
[WhiteElo "1848"]
[BlackElo "2442"]
[Annotator "TA"]
[PlyCount "60"]
[EventDate "2024.03.23"]
[EventType "swiss"]
[EventCountry "ARG"]
[SourceTitle "playchess.com"]
[Source "ChessBase"]
[SourceQuality "1"]
[TimeControl "5400+30"]

{[%evp 10,60,2,0,0,0,0,-54,-63,-57,-70,-61,-43,-44,-34,-36,-18,-22,-30,-95,-91,-106,-118,-225,-238,-234,-187,-296,-300,-300,-270,-310,-281,-579,-578,-821,-790,-920,-937,-933,-930,-900,-870,-1169,-1111,-6411,-5818,-29980,-29981,-29981,-29974,-12833,-3210]} 1. d4 {[%emt 0:00:13]} d5 {[%emt 0:00:15]} 2. Nf3 {[%emt 0:00:13]} Nf6 {[%emt 0:00:27]} 3. Bf4 {[%emt 0:00:24]} c5 {[%emt 0:00:52]} 4. c3 {[%emt 0:00:30]} e6 {[%emt 0:02:56]} 5. e3 {[%emt 0:01:27]} Nc6 {[%emt 0:00:09]} 6. Be2 {[%emt 0:00:30]} Bd6 {[%emt 0:02:43]} 7. Ne5 {[%emt 0:01:05]} Qc7 {[%emt 0:03:32][%cal Rc6e5]} 8. Bb5 {[%emt 0:01:37]} ({Better is} 8. Nxc6 $11 Qxc6 9. Bxd6 Qxd6 10. O-O) 8... O-O {[%emt 0:02:56] Black is slightly better.} 9. Bxc6 {[%emt 0:01:03]} bxc6 {[%emt 0:00:08]} 10. O-O {[%emt 0:00:24]} cxd4 {[%emt 0:10:58]} 11. cxd4 {[%emt 0:01:57]} c5 {[%emt 0:00:08]} 12. Nc3 {[%emt 0:00:37]} Ba6 {[%emt 0:00:49] [#] Wards off Nb5. Threatens to win with ...cxd4.} 13. Re1 {[%emt 0:00:34]} cxd4 {[%emt 0:03:16]} 14. Qxd4 {[%emt 0:02:44]} (14. exd4 $11 Qb7 15. Re3) 14... Nh5 $17 {[%emt 0:05:05] White is on the road to losing.} 15. Rac1 {[%emt 0:06:55][%cal Oc3b5]} Rac8 {[%emt 0:04:02]} 16. g4 {[%emt 0:01:24]} (16. Qa4 $17 Qb7 (16... Bxe5 17. Bxe5 Qxe5 18. Qxa6 $11) 17. Rcd1) 16... Nxf4 $19 {[%emt 0:00:13]} 17. exf4 {[%emt 0:00:13]} Qb7 {[%emt 0:09:01]} 18. b3 {[%emt 0:12:04]} (18. Nb1 $142) 18... Qb4 {[%emt 0:07:06]} 19. Red1 {[%emt 0:01:52]} Qxd4 {[%emt 0:08:26]} 20. Rxd4 {[%emt 0:00:23]} g5 {[%emt 0:00:17]} 21. Nd7 $2 {[%emt 0:00:55] [#]} (21. Ra4 {was worth a try.} Bb5 (21... gxf4 $2 22. Nc4 $19) 22. Rd4) 21... Bxf4 {[%emt 0:01:34]} 22. Rxf4 {[%emt 0:00:09]} gxf4 {[%emt 0:00:11]} 23. Nxf8 {[%emt 0:02:02]} Kxf8 {[%emt 0:00:08]} 24. Ne2 {[%emt 0:01:27]} Rxc1+ {[%emt 0:00:09]} 25. Nxc1 {[%emt 0:00:00][%mdl 4096] Endgame. KB-KN} d4 {[%emt 0:02:06]} 26. b4 {[%emt 0:01:06]} Bc4 {[%emt 0:00:07]} 27. Nb3 {[%emt 0:00:12]} Bxb3 {[%emt 0:00:25]} 28. axb3 {[%emt 0:00:02]} f3 {[%emt 0:00:25]} 29. Kf1 {[%emt 0:00:07]} e5 {[%emt 0:00:07]} 30. Ke1 {[%emt 0:00:28]} e4 {[%emt 0:00:08] Weighted Error Value: White=1.04/Black=0.05 (flawless) .  Mistake:       	White=5     	---        Inaccurate:     	White=1     	---        OK:         	White=3     	Black=3      Best:        	White=1     	Black=3} 0-1

[Event "53rd Mar Del Plata Open 2024"]
[Site "Mar Del Plata"]
[Date "2024.03.23"]
[Round "1.9"]
[White "Montiel Marin, Micaela Agustina"]
[Black "Kiselev, Vitalii"]
[Result "0-1"]
[ECO "E61"]
[WhiteElo "1852"]
[BlackElo "2519"]
[Annotator "TA"]
[PlyCount "88"]
[EventDate "2024.03.23"]
[EventType "swiss"]
[EventCountry "ARG"]
[SourceTitle "playchess.com"]
[Source "ChessBase"]
[SourceQuality "1"]
[TimeControl "5400+30"]

{[%evp 16,88,-38,-42,-31,-56,-58,-47,-30,-40,-39,-32,-34,-32,0,-4,0,-23,-33,-14,-15,-19,-6,-17,-10,-11,0,-5,0,0,0,0,0,0,0,0,0,0,0,0,0,0,0,0,0,-5,0,-162,-163,-306,-358,-368,-359,-396,-396,-1029,-1008,-1135,-905,-1477,-815,-1855,-1514,-1281,-1311,-1497,-1197,-1453,-528,-1495,-1396,-1356,-1329,-29981,-29981]} 1. d4 {[%emt 0:00:06]} Nf6 {[%emt 0:00:17]} 2. Nf3 {[%emt 0:00:15]} g6 {[%emt 0:00:23]} 3. c4 {[%emt 0:00:09]} c5 {[%emt 0:01:34]} 4. e3 {[%emt 0:01:32]} Bg7 {[%emt 0:00:13]} 5. Nc3 {[%emt 0:00:30]} O-O {[%emt 0:00:16]} 6. g3 {[%emt 0:01:39]} cxd4 {[%emt 0:01:17]} 7. exd4 {[%emt 0:00:13]} d5 {[%emt 0:00:07]} 8. cxd5 {[%emt 0:11:23]} Nxd5 {[%emt 0:00:56]} 9. Bg2 {[%emt 0:00:09]} Nc6 {[%emt 0:01:43]} 10. h3 {[%emt 0:01:43]} Nxc3 {[%emt 0:06:28]} 11. bxc3 {[%emt 0:00:06]} e5 {[%emt 0:00:03] Black is slightly better.} 12. Be3 {[%emt 0:12:12]} exd4 {[%emt 0:00:24]} 13. Nxd4 {[%emt 0:01:04]} Nxd4 {[%emt 0:00:51]} 14. cxd4 {[%emt 0:08:49]} Be6 {[%emt 0:00:23] Threatening ...Bc4.} 15. O-O {[%emt 0:00:59]} Bd5 {[%emt 0:00:13] Prevents d5.} 16. Qa4 {[%emt 0:06:09]} Bxg2 {[%emt 0:03:47]} 17. Kxg2 {[%emt 0:00:05]} Qd5+ {[%emt 0:00:09]} 18. Kg1 {[%emt 0:02:48]} Rfd8 {[%emt 0:02:30]} 19. Rfd1 {[%emt 0:01:53]} a6 {[%emt 0:07:08]} 20. Rac1 {[%emt 0:03:27]} Bf8 {[%emt 0:03:46]} 21. Qc4 {[%emt 0:09:26]} Qxc4 {[%emt 0:03:02]} (21... Qf5 {keeps more tension.} 22. g4 Qf3 23. Qf1 f5) 22. Rxc4 {[%emt 0:00:06]} Bd6 {[%emt 0:00:20]} 23. Kf1 {[%emt 0:05:57]} Rac8 {[%emt 0:00:37]} 24. Rdc1 {[%emt 0:00:23]} Rxc4 {[%emt 0:00:06]} 25. Rxc4 $11 {[%emt 0:00:07][%mdl 4096] Endgame. KRB-KRB} f6 {[%emt 0:00:02]} 26. Ke2 {[%emt 0:00:47]} Kf7 {[%emt 0:00:05]} 27. h4 {[%emt 0:03:39]} Ke6 {[%emt 0:00:43]} 28. Rc2 {[%emt 0:02:52]} Kd5 {[%emt 0:00:23]} 29. Kd3 {[%emt 0:00:28]} b5 {[%emt 0:00:25]} 30. Rc1 {[%emt 0:02:55]} Rb8 {[%emt 0:04:01]} 31. Rb1 $2 {[%emt 0:01:37]} (31. Bf4 $1 $11 {and White is okay.}) 31... Rc8 $19 {[%emt 0:00:35]} 32. Rc1 {[%emt 0:04:58]} (32. h5 {might work better.}) 32... Rxc1 {[%emt 0:00:10]} 33. Bxc1 {[%emt 0:00:04] KB-KB} b4 {[%emt 0:00:08]} 34. g4 {[%emt 0:00:47] [#]} h5 $1 {[%emt 0:00:45]} 35. gxh5 {[%emt 0:02:09]} (35. g5 Be7 36. Bf4) 35... gxh5 {[%emt 0:00:06]} 36. Bd2 {[%emt 0:03:35]} a5 {[%emt 0:00:09]} 37. Be3 {[%emt 0:03:40]} Bc7 {[%emt 0:02:02]} 38. Bd2 {[%emt 0:01:00]} Bb6 {[%emt 0:01:12]} 39. Be3 {[%emt 0:00:09]} Ba7 {[%emt 0:00:09]} 40. f3 {[%emt 0:00:46]} Bb8 {[%emt 0:00:06]} 41. Bf2 {[%emt 0:00:28]} Bh2 {[%emt 0:00:52]} (41... Bd6 $142 42. Be1 Bh2) 42. Ke3 {[%emt 0:06:25]} Kc4 {[%emt 0:01:49] [#] Strongly threatening ...a4.} 43. Ke4 {[%emt 0:00:10]} a4 {[%emt 0:00:07] ( -> ...b3)} 44. d5 {[%emt 0:00:38]} b3 {[%emt 0:00:13] Weighted Error Value: White=0.92/Black=0.21 (precise) .  Loses game:     	White=1     	---        Mistake:       	White=2     	---        Inaccurate:     	---       	Black=1      OK:         	White=9     	Black=10     Strong:       	---       	Black=1} 0-1

[Event "53rd Mar Del Plata Open 2024"]
[Site "Mar Del Plata"]
[Date "2024.03.24"]
[Round "1.10"]
[White "Patino, Uriel"]
[Black "Flores, Diego"]
[Result "0-1"]
[ECO "B23"]
[WhiteElo "1856"]
[BlackElo "2530"]
[Annotator "TA"]
[PlyCount "64"]
[EventDate "2024.03.23"]
[EventType "swiss"]
[EventCountry "ARG"]
[SourceTitle "playchess.com"]
[Source "ChessBase"]
[SourceQuality "1"]
[TimeControl "5400+30"]

{[%evp 9,64,2,2,-14,-12,-27,0,-48,-45,-40,-42,-55,-53,-61,-52,-105,-103,-114,-115,-122,-124,-137,-141,-189,-130,-123,-114,-137,-129,-129,-121,-352,-347,-714,-700,-741,-706,-724,-687,-780,-942,-908,-894,-969,-982,-962,-937,-1059,-1033,-1066,-1081,-1385,-1381,-29990,-906,-29991,-29992]} 1. e4 {[%emt 0:00:20]} c5 {[%emt 0:00:14]} 2. Nc3 {[%emt 0:00:04]} a6 {[%emt 0:01:07]} 3. f4 {[%emt 0:00:07]} b5 {[%emt 0:00:11]} 4. Nf3 {[%emt 0:00:25]} Bb7 {[%emt 0:00:09]} 5. d3 {[%emt 0:00:11]} e6 {[%emt 0:02:05]} 6. g3 {[%emt 0:10:16]} d5 {[%emt 0:01:57]} 7. e5 {[%emt 0:02:22]} Nh6 {[%emt 0:01:10]} 8. Bg2 {[%emt 0:03:57]} (8. Bh3 $11) 8... Nf5 $15 {[%emt 0:00:09]} 9. O-O {[%emt 0:02:48]} h5 {[%emt 0:00:34]} 10. a4 {[%emt 0:08:05]} b4 {[%emt 0:00:35]} 11. Ne2 {[%emt 0:00:08]} Nc6 {[%emt 0:00:28]} 12. b3 {[%emt 0:04:10]} (12. c3 $15) 12... Qb6 $17 {[%emt 0:01:28] Black is more active.} 13. Kh1 {[%emt 0:03:40]} Rc8 {[%emt 0:16:24]} 14. Bh3 {[%emt 0:08:42]} d4 {[%emt 0:06:33]} 15. Bxf5 {[%emt 0:18:56]} exf5 {[%emt 0:00:08]} 16. h3 {[%emt 0:00:18] [#]} (16. Kg1 $17 {was called for.}) 16... Ne7 {[%emt 0:17:15]} (16... g5 $1 $19 {[%cal Rg5g4] ...g4 would now be deadly.} 17. a5 (17. Nxg5 $2 Nxe5+ 18. Kg1 Qc6 $19) 17... Qd8 (17... Nxa5 18. fxg5 Rc7 19. Kh2 $16) 18. fxg5 Nxe5 (18... Nxa5 $2 19. Kh2 $18)) 17. Kh2 {[%emt 0:07:43]} Qc6 {[%emt 0:00:51]} 18. Rf2 {[%emt 0:01:47]} Ng8 {[%emt 0:00:29]} 19. Qg1 {[%emt 0:10:55]} Nh6 {[%emt 0:00:50][%cal Oh6g4] And now ...Ng4+! would win.} 20. Bd2 $2 {[%emt 0:03:48] White does not recover from this.} (20. Qg2 $17) 20... Ng4+ $19 {[%emt 0:02:59]} 21. hxg4 $2 {[%emt 0:00:05]} (21. Kg2) 21... hxg4+ {[%emt 0:00:08]} 22. Nh4 {[%emt 0:00:08]} Be7 {[%emt 0:00:18]} 23. Qh1 {[%emt 0:02:20]} Qb6 {[%emt 0:06:01][%cal Oe7h4] [#] Hoping for ...Bxh4!} 24. Rg2 {[%emt 0:01:34]} Bxh4 {[%emt 0:01:00]} (24... Bxg2 25. Kxg2 Qh6 26. Re1 $19 (26. Nxf5 $2 {too greedy.} Qc6+ 27. Kf2 Rxh1 $19)) 25. Kg1 {[%emt 0:00:04]} Qc6 {[%emt 0:00:25][%cal Oh4g3] White must now prevent ...Bxg3! White is weak on the light squares} 26. Rh2 {[%emt 0:03:01]} Qxh1+ {[%emt 0:00:48]} 27. Rxh1 {[%emt 0:00:04]} Bxh1 {[%emt 0:00:06]} 28. gxh4 {[%emt 0:00:08]} Bf3 {[%emt 0:01:15][%cal Oh8h4] Strongly threatening ...Rxh4!} 29. Ng3 {[%emt 0:00:55]} Rxh4 {[%emt 0:00:10]} 30. Be1 {[%emt 0:00:04]} Kd7 {[%emt 0:00:29] Threatens to win with ...Rch8.} 31. Nxf5 {[%emt 0:00:52]} Rh1+ {[%emt 0:00:09]} 32. Kf2 {[%emt 0:00:05]} Rch8 {[%emt 0:00:10] Weighted Error Value: White=0.90/Black=0.07 (flawless) .  Loses game:     	White=1     	---        Mistake:       	White=4     	Black=1      Inaccurate:     	---       	Black=1      OK:         	White=2     	Black=8      Best:        	White=1     	Black=1} 0-1

[Event "53rd Mar Del Plata Open 2024"]
[Site "Mar Del Plata"]
[Date "2024.03.24"]
[Round "2.1"]
[White "Christiansen, Johan-Sebastian"]
[Black "Meza Astrada, Agustin"]
[Result "1-0"]
[ECO "E08"]
[WhiteElo "2633"]
[BlackElo "2032"]
[Annotator "TA"]
[PlyCount "49"]
[EventDate "2024.03.23"]
[EventType "swiss"]
[EventCountry "ARG"]
[SourceTitle "playchess.com"]
[Source "ChessBase"]
[SourceQuality "1"]
[TimeControl "5400+30"]

{[%evp 25,49,42,62,58,115,20,125,129,136,139,236,217,241,166,206,205,214,209,205,172,345,328,340,306,293,278]} 1. c4 {[%emt 0:13:52]} e6 {[%emt 0:00:31]} 2. Nf3 {[%emt 0:00:53]} d5 {[%emt 0:00:16]} 3. g3 {[%emt 0:00:22]} Nf6 {[%emt 0:03:03]} 4. Bg2 {[%emt 0:00:14]} Be7 {[%emt 0:03:06]} 5. d4 {[%emt 0:00:07]} O-O {[%emt 0:00:05]} 6. Qc2 {[%emt 0:00:09]} c6 {[%emt 0:03:04]} 7. O-O {[%emt 0:00:09]} b6 {[%emt 0:14:24]} 8. b3 {[%emt 0:00:07]} Bb7 {[%emt 0:02:49]} 9. Bb2 {[%emt 0:01:23]} Nbd7 {[%emt 0:00:44]} 10. Nc3 {[%emt 0:00:07]} c5 {[%emt 0:02:41]} 11. cxd5 {[%emt 0:02:22]} exd5 {[%emt 0:10:00]} 12. Rfd1 {[%emt 0:00:22]} Rc8 {[%emt 0:01:44]} 13. Rac1 {[%emt 0:20:36]} Re8 {[%emt 0:06:50]} 14. e3 {[%emt 0:05:40][%cal Be2e3,Be3e4,Be4d5,Bd5d6][%mdl 32]} c4 {[%emt 0:14:55]} (14... Bd6 $14) 15. bxc4 {[%emt 0:01:12]} (15. Ne5 $16) 15... Rxc4 {[%emt 0:00:12]} (15... dxc4 $11 {keeps the balance.} 16. d5 a6) 16. Ne5 $16 {[%emt 0:01:20] White is better.} Rc7 {[%emt 0:01:20]} 17. Qb3 {[%emt 0:03:28] White has more active pieces.} Nf8 {[%emt 0:15:25] [#]} (17... Bf8 $16 18. Nxd5 (18. Bxd5 Nxd5 19. Nxd5 Rxc1 $17) 18... Bxd5 19. Bxd5 Nxe5) 18. e4 $1 $18 {[%emt 0:05:21][%mdl 512]} Bd6 {[%emt 0:17:18]} 19. Nxd5 {[%emt 0:07:46]} Nxd5 {[%emt 0:00:05]} 20. exd5 {[%emt 0:00:14]} Rxc1 {[%emt 0:00:42]} 21. Rxc1 {[%emt 0:00:17]} ({Much less strong is} 21. Bxc1 Bxe5 22. dxe5 Rxe5) 21... Nd7 {[%emt 0:00:53]} 22. Nc6 {[%emt 0:06:29]} Qa8 {[%emt 0:00:21] [#]} (22... Qf6 23. Ba3 (23. Nxa7 h5 $18) 23... Qh6) 23. Ba3 {[%emt 0:01:13] White has a decisive advantage.} Bxa3 {[%emt 0:00:47]} 24. Qxa3 {[%emt 0:00:01]} Nf6 {[%emt 0:00:26]} 25. d6 {[%emt 0:06:47] Weighted Error Value: White=0.27 (precise) /Black=0.43.  Mistake:       	White=1     	Black=4      Inaccurate:     	White=1     	---        OK:         	White=4     	Black=4      Best:        	White=1     	---} ({Not} 25. Nxa7 g6 $14 (25... Bxd5 26. Bxd5 Nxd5 27. Qf3 $16)) 1-0

[Event "53rd Mar Del Plata Open 2024"]
[Site "Mar Del Plata"]
[Date "2024.03.24"]
[Round "2.2"]
[White "Dubrovich, Igor"]
[Black "Felgaer, Ruben"]
[Result "0-1"]
[ECO "B33"]
[WhiteElo "2033"]
[BlackElo "2565"]
[Annotator "RC"]
[PlyCount "80"]
[EventDate "2024.03.23"]
[EventType "swiss"]
[EventCountry "ARG"]
[SourceTitle "playchess.com"]
[Source "ChessBase"]
[SourceQuality "1"]
[TimeControl "5400+30"]

1. e4 {[%emt 0:00:02]} c5 {[%emt 0:03:16]} 2. Nf3 {[%emt 0:00:07]} Nc6 {[%emt 0:00:42]} 3. d4 {[%emt 0:00:05]} cxd4 {[%emt 0:00:05]} 4. Nxd4 {[%emt 0:00:06]} Nf6 {[%emt 0:00:29]} 5. Nc3 {[%emt 0:00:05]} e5 {[%emt 0:00:04]} 6. Ndb5 {[%emt 0:00:04]} d6 {[%emt 0:00:06]} 7. Bg5 {[%emt 0:00:05]} a6 {[%emt 0:00:05]} 8. Na3 {[%emt 0:00:06]} b5 {[%emt 0:00:07]} 9. Nd5 {[%emt 0:00:04]} Be7 {[%emt 0:00:09]} 10. Bxf6 {[%emt 0:00:05]} Bxf6 {[%emt 0:00:06]} 11. c3 {[%emt 0:00:04]} Bg5 {[%emt 0:00:58]} 12. Nc2 {[%emt 0:00:14]} O-O {[%emt 0:00:08]} 13. a4 {[%emt 0:00:02]} bxa4 {[%emt 0:00:09]} 14. Rxa4 {[%emt 0:00:04]} a5 {[%emt 0:00:08]} 15. Bc4 {[%emt 0:00:02]} Rb8 {[%emt 0:00:12]} 16. b3 {[%emt 0:00:03]} Kh8 {[%emt 0:00:48]} 17. Nce3 {[%emt 0:00:03]} Bb7 {[%emt 0:13:14]} 18. h4 {[%emt 0:07:44]} Bxe3 {[%emt 0:00:10]} 19. Nxe3 {[%emt 0:00:05]} Ne7 {[%emt 1:19:04]} 20. Nd5 {[%emt 0:10:56]} Bc6 {[%emt 0:00:00]} 21. Ra2 {[%emt 0:01:15]} Bxd5 {[%emt 0:00:00]} 22. Bxd5 {[%emt 0:01:04]} Qc7 {[%emt 0:00:00]} 23. Bc4 {[%emt 0:04:09]} f5 {[%emt 0:02:00]} 24. O-O {[%emt 0:17:28]} fxe4 {[%emt 0:00:00]} 25. Qd2 {[%emt 0:07:56]} Qb6 {[%emt 0:00:00]} 26. Re1 {[%emt 0:07:51]} Rf4 {[%emt 0:00:00]} 27. Bd5 {[%emt 0:00:48]} Rbf8 {[%emt 0:00:00]} 28. Re2 {[%emt 0:00:58]} h6 {[%emt 0:00:00]} 29. Bxe4 {[%emt 0:04:13]} Nf5 {[%emt 0:00:00]} 30. Bxf5 {[%emt 0:01:04]} R8xf5 {[%emt 0:00:00]} 31. Qd5 {[%emt 0:03:58]} e4 {[%emt 0:00:00]} 32. Qe6 {[%emt 0:03:12]} Re5 {[%emt 0:00:00]} 33. Qc8+ {[%emt 0:01:40]} Kh7 {[%emt 0:00:00]} 34. g3 {[%emt 0:14:49]} Rf3 {[%emt 0:00:00]} 35. Kg2 {[%emt 0:00:32]} Qxb3 {[%emt 0:00:00]} 36. Qc7 {[%emt 0:01:18]} Rd3 {[%emt 0:02:54]} 37. Rxa5 {[%emt 0:05:51]} Rxc3 {[%emt 0:00:14]} 38. Qd8 {[%emt 0:00:19]} Rc1 {[%emt 0:01:33]} 39. Re3 {[%emt 0:06:03]} Qd1 {[%emt 0:00:20]} 40. Kh3 {[%emt 0:00:23]} Qf1+ {[%emt 0:00:08]} 0-1

[Event "53rd Mar Del Plata Open 2024"]
[Site "Mar Del Plata"]
[Date "2024.03.24"]
[Round "2.3"]
[White "Marson, Juan Miguel"]
[Black "Tristan, Leonardo"]
[Result "0-1"]
[ECO "D31"]
[WhiteElo "2029"]
[BlackElo "2521"]
[Annotator "TA"]
[PlyCount "110"]
[EventDate "2024.03.23"]
[EventType "swiss"]
[EventCountry "ARG"]
[SourceTitle "playchess.com"]
[Source "ChessBase"]
[SourceQuality "1"]
[TimeControl "5400+30"]

{[%evp 9,110,22,22,27,23,23,29,27,15,21,23,17,26,18,14,15,26,18,21,20,39,-5,-9,-2,4,0,4,-10,10,-16,-8,-19,-6,-31,-18,-29,-30,-25,-21,-62,-58,-68,-62,-52,-43,-47,-19,-34,-42,-46,-4,-2,0,0,0,0,82,77,121,114,129,122,133,57,66,8,7,4,33,-228,-14,-14,-14,-94,-94,-87,-87,-89,-89,-100,-93,-99,-93,-127,-144,-148,-148,-210,-148,-228,-143,-242,-173,-847,-825,-1727,-1733,-1715,-1801,-1401,-1195,-1100,-1021]} 1. d4 {[%emt 0:06:21]} d5 {[%emt 0:02:36]} 2. c4 {[%emt 0:00:30]} e6 {[%emt 0:01:01]} 3. Nc3 {[%emt 0:00:32]} h6 {[%emt 0:02:29]} 4. cxd5 {[%emt 0:00:51]} exd5 {[%emt 0:00:06]} 5. Bf4 {[%emt 0:00:21]} Nf6 {[%emt 0:00:57]} 6. e3 {[%emt 0:00:18]} Bd6 {[%emt 0:01:02]} 7. Bxd6 {[%emt 0:04:51]} Qxd6 {[%emt 0:00:24]} 8. Bd3 {[%emt 0:00:19] Weiß hat minimalen Vorteil.} O-O {[%emt 0:04:20]} 9. Nge2 {[%emt 0:00:54]} Re8 {[%emt 0:02:05]} 10. Qc2 {[%emt 0:02:55]} c6 {[%emt 0:02:45]} 11. O-O {[%emt 0:02:15]} Nbd7 {[%emt 0:07:44]} 12. Ng3 {[%emt 0:01:49]} Nb6 {[%emt 0:07:58]} 13. Rfe1 {[%emt 0:01:52]} Bd7 {[%emt 0:03:48]} 14. Rad1 {[%emt 0:01:45]} Re7 {[%emt 0:06:35]} 15. Na4 {[%emt 0:09:46]} Nxa4 {[%emt 0:11:32]} 16. Qxa4 {[%emt 0:00:11]} g6 {[%emt 0:08:28]} 17. Qc2 {[%emt 0:13:55]} Rae8 {[%emt 0:07:29]} 18. Nf1 {[%emt 0:20:40]} Kg7 {[%emt 0:02:31]} 19. f3 {[%emt 0:03:23]} b6 {[%emt 0:06:16]} 20. Qc3 {[%emt 0:01:54]} a5 {[%emt 0:08:08]} 21. Bb1 {[%emt 0:01:21]} Qb4 {[%emt 0:01:39]} 22. Rc1 {[%emt 0:04:09]} Rc8 {[%emt 0:04:17]} 23. Red1 {[%emt 0:05:16]} c5 {[%emt 0:04:33]} 24. a3 {[%emt 0:06:44]} (24. dxc5 {hält die Spannung aufrecht.} bxc5 25. b3 h5 26. Qa1) 24... Qxc3 {[%emt 0:00:24]} 25. Rxc3 {[%emt 0:02:56]} c4 {[%emt 0:01:41]} 26. Re1 {[%emt 0:01:14]} b5 {[%emt 0:01:41]} 27. e4 {[%emt 0:01:24]} b4 {[%emt 0:00:13]} 28. axb4 {[%emt 0:00:11]} axb4 {[%emt 0:00:03]} 29. Rcc1 {[%emt 0:00:17]} Ba4 {[%emt 0:01:37]} 30. Ne3 {[%emt 0:05:12]} Rd7 {[%emt 0:00:20]} 31. exd5 {[%emt 0:00:49]} Bb3 {[%emt 0:00:39]} 32. Bc2 {[%emt 0:00:38][%cal Bb1c2,Bc2a4,Ba4c6][%mdl 32]} Ba2 {[%emt 0:00:24]} (32... Bxc2 $11 {bleibt in der Remisbreite.} 33. Rxc2 Nxd5) 33. Ba4 $1 $16 {[%emt 0:00:52]} Ra7 {[%emt 0:00:43]} 34. Bc6 {[%emt 0:00:13]} c3 {[%emt 0:00:29]} 35. bxc3 {[%emt 0:00:36]} bxc3 {[%emt 0:00:30] [#]} 36. Kf2 {[%emt 0:00:45]} ({Natürlich nicht} 36. Rxc3 $6 Nxd5 37. Rc5 (37. Nxd5 Bxd5 38. Rc5 Bxc6 $11) 37... Nb4 $11) ({Vorzuziehen ist} 36. Ra1 $1 $16) 36... Bb3 $1 $14 {[%emt 0:00:31][%cal Oc3c2]} 37. Re2 {[%emt 0:00:29]} (37. Ra1 $1 $14 Rxa1 38. Rxa1) 37... c2 $1 $11 {[%emt 0:00:19]} 38. Nxc2 {[%emt 0:00:20]} Nxd5 {[%emt 0:00:42]} (38... Rac7 $5) 39. Na1 $2 {[%emt 0:00:39][%mdl 8192] [#]} (39. Bxd5 $14 {bleibt weiter vorne.} Bxd5 40. Rb1) 39... Rxa1 $2 {[%emt 0:00:27]} 40. Rxa1 {[%emt 0:00:05] Bxd5 wäre nun fies.} Rxc6 {[%emt 0:00:04]} 41. Rd2 {[%emt 0:00:40]} (41. Rb2 $11 {hält das Gleichgewicht.} Bc4 42. Rc2) 41... Nf6 $17 {[%emt 0:00:49]} 42. Ra5 {[%emt 0:00:07]} Bd5 {[%emt 0:00:12]} 43. Rc5 {[%emt 0:00:07]} Rb6 {[%emt 0:00:07]} 44. Rcc2 {[%emt 0:00:23]} g5 {[%emt 0:00:08]} 45. Rb2 {[%emt 0:00:05]} Ra6 {[%emt 0:00:05] Schwarz steht aktiver.} 46. Rd3 {[%emt 0:00:54]} h5 {[%emt 0:00:25]} 47. Rbd2 {[%emt 0:00:04]} h4 {[%emt 0:00:38]} 48. Rc3 {[%emt 0:01:30]} (48. h3 $17) 48... Kg6 {[%emt 0:00:13]} 49. Rb2 {[%emt 0:01:03]} (49. h3 $17) 49... Ra4 {[%emt 0:00:48]} 50. Rd3 {[%emt 0:00:12]} (50. Rc5 $17) 50... Ra1 {[%emt 0:00:20] Und jetzt ...Bc4 wäre schön.} 51. h3 $2 {[%emt 0:00:32]} (51. Re3) 51... Bc4 $19 {[%emt 0:00:38] Schwarz steht klar auf Gewinn.} 52. Rc3 {[%emt 0:00:49]} Rf1+ {[%emt 0:00:12]} 53. Ke3 {[%emt 0:00:07]} Nd5+ {[%emt 0:00:04]} 54. Kd2 {[%emt 0:00:04]} Rf2+ {[%emt 0:00:32]} 55. Ke1 {[%emt 0:00:04]} Rxb2 {[%emt 0:00:12] Gewichteter Fehlerwert: Weiß=0.50/Schwarz=0.19 (sehr präzise) .  Verlustzug:     	Weiß=1     	---        Gewinn verpasst:   	---       	Schwarz=1     Fehler:       	Weiß=7     	Schwarz=1     Ungenau:       	Weiß=5     	Schwarz=5     OK:         	Weiß=12    	Schwarz=17    Bester:       	---       	Schwarz=1     Stark:        	Weiß=1     	Schwarz=2} 0-1